Cogmind - Beta 14 @@@ ROGUE MODE // 2024.10.11 @ 17:45:06 Player: Phosphorus Result: Destroyed by S-43 Plague with Heavy Machine Gun Performance ------------- Evolutions (7) 3500 Regions Visited (21) 4200 Robots Destroyed (294) 1470 Value Destroyed (11965) 11965 Prototype IDs (52) 1040 Alien Tech Used (0) 0 Bonus (-131) -131 TOTAL SCORE: 22044 Bonus ------- High Alert Combat Kills 232 Follower Combat Kills 936 Aligned with FarCom 300 Friendly Fire -1599 Cogmind --------- Core Integrity 0/1300 Matter 163/300 Energy 99/100 System Corruption 0% Temperature Cool (0) Movement Core (50) Location -3/Research Parts ------- > --- POWER (2) -------- (None) > --- PROPULSION (4) --- (None) > --- UTILITY (12) ----- Enhanced Optical Array Advanced Terrain Scan Processor Experimental Terrain Scan Processor Transport Network Coupler Advanced Targeting Computer > --- WEAPON (3) ------- (None) > --- INVENTORY (5) ---- Neutrino Core Improved Treads Centrium Medium Armor Plating Advanced Plasma Cannon Fusion Bomb Launcher Peak State ------------ > --- POWER ------------ Antimatter Reactor Antimatter Reactor > --- PROPULSION ------- Medium Treads Heavy Treads Advanced Medium Treads > --- UTILITY ---------- Improved Cooling System Advanced Cooling System Huge Storage Unit Advanced Targeting Computer Particle Accelerator Quantum Capacitor Advanced Transmission Jammer Improved Medium Armor Plating Improved Force Field > --- WEAPON ----------- HERF Cannon Heavy Phase Cannon Matter Neutralizer > --- INVENTORY -------- Neutrino Core Neutrino Core Neutrino Core Light Antimatter Reactor Light Antimatter Reactor Improved Treads Advanced Medium Treads Improved Coolant Injector Compact Battery Matter Compressor Advanced Signal Interpreter Long-range Terrain Scanner Advanced Transmission Jammer Tractor Beam Drone Bay Personal Teleporter v0.10 Heavy Phase Cannon Proton Missile Launcher Improved Grenade Launcher Rocket Array LU-1G1's Laser Shovel CPS Tube [Rating: 122] Favorites ----------- Power Improved Deuterium Engine Engine Improved Deuterium Engine Power Core Neutrino Core Reactor Antimatter Reactor Propulsion Advanced Treads Treads Advanced Treads Leg Aluminum Leg Wheel Compact Wheel Flight Unit Impulse Thruster Utility Improved Cooling System Device Improved Cooling System Storage High-capacity Storage Unit Processor Advanced Targeting Computer Hackware Authchip [Storage] Protection Makeshift Medium Armor Plating Weapon Gatling Laser Energy Gun Gatling Laser Energy Cannon Heavy Plasma Cannon Ballistic Gun Light Assault Rifle Ballistic Cannon Siege Cannon Launcher Rocket Array Special Weapon LU-1G1's Laser Shovel Impact Weapon Powered Hammer Slashing Weapon Chainsword Build | -11 -10 -10 -10 -9 -8 -7 -7 -7 -7 -5 -5 -5 -5 -5 -5 -4 -4 -4 -4 -4 -3 ------- Run | Yrd Mat Min Exi Min Mat Fac Sto Rec Scr Fac Was Fac Upp Upp War Pro Fac Was Fac Ext Res Slots Evolved 14 | . . . . . 4 2 . . . 4 . . . . . . 2 . . . 2 Power 1 | . . . . . . 1 . . . . . . . . . . . . . . . Propulsion 2 | . . . . . 1 . . . . 1 . . . . . . . . . . . Utility 10 | . . . . . 2 1 . . . 3 . . . . . . 2 . . . 2 Weapon 1 | . . . . . 1 . . . . . . . . . . . . . . . . Parts Attached 367 | 6 1 5 1 6 9 21 27 7 114 17 17 32 3 13 . 7 3 11 36 7 24 Power 28 | 1 . 1 . 1 . 2 2 . 6 2 2 3 . . . . . 2 6 . . Engine 15 | 1 . 1 . . . 2 2 . 5 2 . 2 . . . . . . . . . Core 6 | . . . . 1 . . . . 1 . . 1 . . . . . . 3 . . Reactor 7 | . . . . . . . . . . . 2 . . . . . . 2 3 . . Propulsion 56 | 2 . 1 . 2 1 7 3 . 17 2 2 . 2 3 . . . 4 . 2 8 Treads 44 | 2 . . . . . 6 3 . 14 2 2 . 2 3 . . . 4 . 2 4 Leg 5 | . . 1 . 2 . . . . 2 . . . . . . . . . . . . Wheel 3 | . . . . . 1 1 . . 1 . . . . . . . . . . . . Hover . | . . . . . . . . . . . . . . . . . . . . . . Flight 4 | . . . . . . . . . . . . . . . . . . . . . 4 Utility 146 | 1 1 2 1 . 4 1 5 3 50 5 5 16 1 4 . 7 2 4 20 2 12 Device 82 | . . 2 . . 3 1 4 2 26 2 3 12 . 4 . 6 1 2 11 2 1 Storage 6 | 1 . . 1 . . . . 1 . . 2 . . . . . . . 1 . . Processor 14 | . . . . . . . . . 2 2 . . . . . . 1 . . . 9 Hackware 1 | . . . . . . . . . . . . . . . . . . . 1 . . Protection 43 | . 1 . . . 1 . 1 . 22 1 . 4 1 . . 1 . 2 7 . 2 Artifact . | . . . . . . . . . . . . . . . . . . . . . . Weapon 137 | 2 . 1 . 3 4 11 17 4 41 8 8 13 . 6 . . 1 1 10 3 4 Energy Gun 41 | . . . . 1 1 8 12 3 12 2 1 1 . . . . . . . . . Energy Cannon 43 | . . . . 1 . 1 1 1 7 3 3 9 . 4 . . 1 1 9 1 1 Ballistic Gun 6 | 2 . 1 . . 2 . . . 1 . . . . . . . . . . . . Ballistic Cannon 13 | . . . . . . . . . 11 . 1 1 . . . . . . . . . Launcher 15 | . . . . 1 1 . 2 . 2 1 2 1 . 2 . . . . 1 1 1 Special Weapon 14 | . . . . . . . . . 8 2 1 1 . . . . . . . 1 1 Impact Weapon 1 | . . . . . . . . . . . . . . . . . . . . . 1 Slashing Weapon 4 | . . . . . . 2 2 . . . . . . . . . . . . . . Piercing Weapon . | . . . . . . . . . . . . . . . . . . . . . . Special Melee Weapon . | . . . . . . . . . . . . . . . . . . . . . . Unidentified Prototypes 23 | . . . . . . 2 10 . 3 3 . . . . . . . . 2 . 3 Parts Lost 58 | . . 4 . 1 . 1 . . 15 2 3 2 . . . 3 . . 1 15 11 Power 7 | . . 1 . . . . . . 3 . 1 1 . . . . . . . 1 . Propulsion 18 | . . 1 . 1 . . . . 5 1 . . . . . . . . . 4 6 Utility 26 | . . 1 . . . . . . 7 1 2 1 . . . 3 . . 1 6 4 Weapon 7 | . . 1 . . . 1 . . . . . . . . . . . . . 4 1 Highest Loss Streak 11 | . . 3 . 1 . 1 . . 8 1 3 1 . . . 2 . . 1 11 3 To Critical Strikes . | . . . . . . . . . . . . . . . . . . . . . . Average Slot Usage (%) 87 | . 95 96 85 97 98 99 99 97 86 99 66 82 85 87 88 87 86 90 88 87 29 Engine 7 | . 14 11 . . . 13 14 15 11 10 1 . . . . . . . . . . Core 2 | . . . . 11 9 . . . 2 . . 3 5 5 5 5 5 . 3 . . Reactor 2 | . . . . . . . . . . . 8 5 5 5 5 5 5 9 6 9 . Treads 16 | . 28 25 14 13 . 17 23 23 16 22 11 11 14 17 17 17 15 15 15 14 5 Leg 1 | . . 2 14 14 18 1 . . . . . . . . . . . . . . . Device 19 | . . 8 14 14 17 22 23 20 14 17 15 25 29 29 29 31 30 29 26 29 . Storage 6 | . 14 14 14 14 9 7 7 7 7 5 4 5 5 5 5 5 5 5 5 4 . Processor 2 | . . . . . . . . . . 13 12 3 . . . . 3 5 5 5 18 Protection 8 | . 10 5 . . 8 7 7 7 14 7 1 4 4 5 5 2 5 8 10 5 . Energy Gun 7 | . . . . 3 8 16 21 20 11 2 . 2 . . . . . . . . . Energy Cannon 5 | . . . . 3 9 5 . 2 . 13 . 14 17 16 17 17 14 15 13 14 . Ballistic Gun 3 | . 28 28 28 20 8 . . . . . . . . . . . . . . . . Ballistic Cannon 1 | . . . . . . . . . 2 . 4 . . . . . . . . . . Peak Build Rating 122 | 6 7 10 10 22 35 48 54 55 84 77 93 101 101 97 95 97 108 116 118 122 65 Average Rating 64 | 4 6 7 8 14 33 44 51 52 60 73 84 92 92 93 95 93 104 110 112 118 38 On Entrance 58 | . 6 7 7 10 20 34 48 54 54 58 73 85 101 89 95 95 97 108 111 118 17 Naked Turns . | . . . . . . . . . . . . . . . . . . . . . . Heaviest Build 175 | 13 16 16 23 37 50 65 62 84 147 107 104 134 133 133 133 133 124 136 170 175 7 Greatest Support 140 | 40 40 40 20 25 25 68 72 72 72 76 140 140 140 130 130 130 130 130 128 128 15 Greatest Overweight (x) 48 | . . . 1 2 3 4 . 1 48 2 5 . 1 1 1 1 . 2 1 1 . Average Overweight (x) . | . . . . 1 1 2 . . 1 1 . . . . 1 . . . . . . Largest Inventory Capacity 25 | 8 8 8 15 15 15 15 15 20 20 20 20 20 20 20 20 20 20 20 25 25 5 Average Capacity 18 | 7 8 8 10 15 15 15 15 18 20 20 18 20 20 20 20 20 20 20 20 24 5 Most Carried 25 | 6 8 8 11 15 14 15 15 20 20 20 20 20 20 20 19 19 20 20 21 25 5 Average Carried 16 | 2 7 7 8 12 10 14 14 16 18 18 17 19 19 19 19 16 18 19 20 19 4 Final Capacity 25 | 8 8 8 15 15 15 15 15 20 20 20 20 20 20 20 20 20 20 20 25 5 5 Final Carried 20 | 6 8 8 11 14 11 15 15 20 20 20 20 20 20 19 19 17 20 20 20 5 5 Class Distribution -------------------- 47% | Scavenger-Tank 18% | Mutant 12% | Tank 8% | Scavenger-Skirmisher 4% | Gunner 4% | Scavenger-Gunner Dominant Class ---------------- Mutant | -10/Materials Mutant | -10/Mines Mutant | -10/Exiles Mutant | -9/Mines Scavenger-Skirmisher | -8/Materials Scavenger-Tank | -7/Factory Tank | -7/Storage Tank | -7/Recycling Scavenger-Tank | -7/Scraptown Scavenger-Tank | -5/Factory Scavenger-Skirmisher | -5/Waste Scavenger-Skirmisher | -5/Factory Scavenger-Tank | -5/Upper Caves Scavenger-Tank | -5/Upper Caves Scavenger-Tank | -5/Warlord Scavenger-Gunner | -4/Proximity Caves Scavenger-Gunner | -4/Factory Scavenger-Gunner | -4/Waste Gunner | -4/Factory Gunner | -4/Extension Mutant | -3/Research Resources | -11 -10 -10 -10 -9 -8 -7 -7 -7 -7 -5 -5 -5 -5 -5 -5 -4 -4 -4 -4 -4 -3 ----------- Run | Yrd Mat Min Exi Min Mat Fac Sto Rec Scr Fac Was Fac Upp Upp War Pro Fac Was Fac Ext Res Matter Collected 9500 | 254 101 233 10 75 . 575 291 90 4277 226 1104 737 156 286 . 80 25 110 606 215 49 Remotely 2529 | . . . . . . . . . 2200 . . 189 . . . . . . 140 . . Salvage Created 14996 | . 267 570 . 45 28 1051 537 239 5554 632 1008 1524 139 571 . 115 166 268 1134 1130 18 Parts 761 | . 18 40 . 8 4 38 27 15 355 22 16 71 7 28 . 7 5 3 52 45 . Haulers Intercepted 7 | . . . . . . 1 3 . . 1 . 1 . . . . . . 1 . . Recyclers Shooed 5 | . . 1 . . . 1 1 . . . . . . . . . . . 1 1 . Parts Field Recycled . | . . . . . . . . . . . . . . . . . . . . . . Retrieved Matter . | . . . . . . . . . . . . . . . . . . . . . . Parts Self-Destructed 38 | . . . . . . . . . . . . . 11 20 . 7 . . . . . Prevented 1 | . . . . . . . . . . . . . 1 . . . . . . . . Kills | -11 -10 -10 -10 -9 -8 -7 -7 -7 -7 -5 -5 -5 -5 -5 -5 -4 -4 -4 -4 -4 -3 ------- Run | Yrd Mat Min Exi Min Mat Fac Sto Rec Scr Fac Was Fac Upp Upp War Pro Fac Was Fac Ext Res Combat Hostiles Destroyed 272 | . 8 13 . 4 4 15 7 3 123 12 6 25 2 13 . 1 2 . 19 15 . Guns 53 | . 8 13 . 1 . 8 7 3 11 1 . 1 . . . . . . . . . Cannons 163 | . . . . . . 5 . . 103 5 5 17 2 4 . 1 1 . 12 8 . AOE 39 | . . . . 3 4 1 . . 9 4 1 5 . 9 . . . . 2 1 . Classes Destroyed 29 | . 2 3 . 1 . 5 2 . 11 . 2 . 1 1 . 1 . . . . . Worker 11 | . . . . 1 . 3 1 . 3 1 . 1 . . . . . . . . 1 Builder 11 | . . 1 . . . . 2 1 . 2 . 3 . . . . . . . 2 . Tunneler 8 | . . 4 . . . . . . 3 . . . . . . . . . . . 1 Hauler 7 | . . . . . . 1 3 . . 1 . 1 . . . . . . 1 . . Recycler 6 | . . 1 . . . 3 . 1 . . . 1 . . . . . . . . . Mechanic 1 | . . . . . . . 1 . . . . . . . . . . . . . . Operator 2 | . . . . . . . 1 . . . . 1 . . . . . . . . . Watcher 1 | . . . . . . 1 . . . . . . . . . . . . . . . Swarmer 30 | . 3 6 . 3 4 2 . . . 4 . 1 . 5 . . . . . 2 . Grunt 57 | . 5 7 . 1 . 5 4 . . 3 . 13 . 5 . . . . 6 8 . Duelist 2 | . . . . . . . . . . . . 1 . . . . . . 1 . . Sentry 21 | . . . . . . 3 1 3 . . . 4 1 . . . 2 . 2 5 . Hunter 11 | . . . . . . 2 1 . 1 2 . 3 . 2 . . . . . . . Programmer 21 | . . . . . . 3 1 . . 3 . 3 1 . . . . . 10 . . Behemoth 1 | . . . . . . . . . . . . . . . . 1 . . . . . Compactor 6 | . . . . . . . . . . . 6 . . . . . . . . . . Bolteater 8 | . . . . . . . . . 8 . . . . . . . . . . . . Federalist 13 | . . . . . . . . . 13 . . . . . . . . . . . . Explorer 13 | . . . . . . . . . 13 . . . . . . . . . . . . Ranger 8 | . . . . . . . . . 8 . . . . . . . . . . . . Guru 7 | . . . . . . . . . 7 . . . . . . . . . . . . Scientist 15 | . . . . . . . . . 15 . . . . . . . . . . . . Scrapper 46 | . . . . . . . . . 46 . . . . . . . . . . . . Elite 23 | . . . . . . . . . 23 . . . . . . . . . . . . Zionite 2 | . . . . . . . . . 2 . . . . . . . . . . . . Samaritan 1 | . . . . . . . . . . . . . 1 . . . . . . . . Tinkerer 2 | . . . . . . . . . 2 . . . . . . . . . . . . Thug 2 | . . . . . . . . . 2 . . . . . . . . . . . . Butcher 1 | . . . . . . . . . 1 . . . . . . . . . . . . Martyr 1 | . . . . . . . . . . . 1 . . . . . . . . . . Mutant 1 | . . . . . . . . . . . . . . 1 . . . . . . . Best Kill Streak 15 | . 6 3 . 4 4 4 5 3 15 7 3 10 1 5 . 1 1 . 6 3 1 Combat Bots Only 14 | . 6 3 . 3 4 2 2 1 14 4 3 7 1 5 . 1 1 . 6 3 . Max Kills in Single Turn 6 | . 2 1 . 2 3 2 2 2 6 5 1 5 1 5 . 1 1 . 1 2 1 Gunslinging 1 | . 1 . . . . . . . . . . . . . . . . . . . . Exploded 6 | . . . . 2 3 1 . . 6 3 1 3 . 5 . . . . 1 1 . Melee . | . . . . . . . . . . . . . . . . . . . . . . Uniques/NPCs Destroyed 2 | . . . . . . . 1 . 1 . . . . . . . . . . . . 01-MTF (-7/Storage) Triborg (-7/Scraptown) Combat | -11 -10 -10 -10 -9 -8 -7 -7 -7 -7 -5 -5 -5 -5 -5 -5 -4 -4 -4 -4 -4 -3 -------- Run | Yrd Mat Min Exi Min Mat Fac Sto Rec Scr Fac Was Fac Upp Upp War Pro Fac Was Fac Ext Res Hostile Shots Fired 1406 | . 31 75 . 8 11 64 50 27 335 109 3 108 2 58 . 30 6 . 47 143 299 Missed 464 | . 7 29 . 2 6 26 20 15 68 45 . 26 . 13 . 4 2 . 10 52 139 Damage Taken 17646 | . 279 525 . 61 104 399 294 61 4693 928 172 1688 31 618 . 639 96 . 1277 2427 3354 Core 2697 | . 33 86 . . 32 7 20 14 581 50 32 73 . 49 . 46 . . 29 330 1315 Absorbed by Shields 2120 | . . . . . . 127 124 29 854 310 49 149 11 218 . 29 . . . 220 . Reduced by Siege Mode 443 | . . . . . . . . . 253 . 16 90 . 16 . 21 . . 37 10 . Redirected to Shielding 65 | . . . . . . . . . 65 . . . . . . . . . . . . Regen/Repaired (Parts) 1379 | . . . . . . . 67 . 886 . 115 53 . . . . 258 . . . . Core Remaining (%) 66 | 100 . . . 52 94 . . . 11 . . . . . . 75 . . . 68 . Volleys Fired 752 | . 22 54 . 10 9 28 25 12 222 35 50 80 4 16 . 8 12 5 86 73 1 Largest 3 | . 2 2 . 2 3 3 3 3 3 3 3 3 3 3 . 3 3 1 3 1 1 Hottest 301 | . 40 40 . 40 180 240 240 240 240 195 195 270 278 278 . 278 278 88 301 105 98 Shots Fired 1330 | . 44 108 . 14 11 83 70 26 360 97 74 155 12 41 . 24 24 5 106 75 1 Gun 430 | . 44 108 . 8 2 60 70 21 81 11 9 16 . . . . . . . . . Cannon 867 | . . . . . 7 23 . 5 272 84 58 138 12 38 . 24 24 5 103 73 1 Launcher 29 | . . . . 6 2 . . . 4 2 6 1 . 3 . . . . 3 2 . Special 4 | . . . . . . . . . 3 . 1 . . . . . . . . . . Kinetic 466 | . 44 108 . 8 1 . . . 253 . 41 11 . . . . . . . . . Thermal 772 | . . . . . 8 83 70 26 101 95 26 143 12 38 . 24 24 . 89 32 1 Explosive 29 | . . . . 6 2 . . . 4 2 6 1 . 3 . . . . 3 2 . Electromagnetic 60 | . . . . . . . . . . . . . . . . . . 5 14 41 . Robot Hit Streak 36 | . 7 10 . 6 7 17 10 21 31 6 10 35 9 17 . 24 36 4 17 19 . Robot Miss Streak 8 | . 3 3 . 2 1 3 5 4 6 2 2 6 1 8 . . 1 1 2 4 . Penetration Max 2 | . . . . . . . . . 2 . . . . . . . . . . . . Secondary Targets 8 | . 2 2 . . . . 1 . 3 . . . . . . . . . . . . Max Gunslinging Chain 1 | . 1 1 . . . . 1 . 1 . . . . . . . . . . . . Capacitor 141 | . . . . . . . . . . . . . . . . . . . 72 69 . Autonomous 83 | . . . . . . . . . 83 . . . . . . . . . . . . Shots Hit Robots 899 | . 28 78 . 6 4 63 56 16 264 59 55 85 9 26 . 19 13 4 53 59 2 Core Hits 589 | . 14 39 . 12 4 60 42 16 181 29 18 66 5 27 . 4 5 1 35 31 . Critical Kills 5 | . . 1 . . . . . . . . . 3 . . . . . . 1 . . Critical Parts Destroyed 1 | . . . . . . . . . . 1 . . . . . . . . . . . Critical Strikes 29 | . . 1 . . . . . . 20 1 2 3 . . . . . . 2 . . Meltdown 3 | . . . . . . . . . . . . 2 . . . . . . 1 . . Destroy 4 | . . 1 . . . . . . . 1 1 1 . . . . . . . . . Blast 21 | . . . . . . . . . 20 . 1 . . . . . . . . . . Corrupt 1 | . . . . . . . . . . . . . . . . . . . 1 . . Melee Attacks 16 | . . . . . . 2 2 . . . . . . . . . . . . . 12 Impact 12 | . . . . . . . . . . . . . . . . . . . . . 12 Slashing 4 | . . . . . . 2 2 . . . . . . . . . . . . . . Piercing . | . . . . . . . . . . . . . . . . . . . . . . Sneak Attacks 2 | . . . . . . . . . . . . . . . . . . . . . 2 Combat Hostiles . | . . . . . . . . . . . . . . . . . . . . . . Follow-up Attacks . | . . . . . . . . . . . . . . . . . . . . . . Damage Inflicted 47459 | 2 314 814 . 193 289 1606 1285 412 21565 2293 4363 4913 369 1539 . 711 391 161 2749 3308 182 Guns 6301 | . 314 813 . 48 42 1289 1259 385 1345 298 211 297 . . . . . . . . . Cannons 35024 | . . . . . 26 290 . . 19131 1419 3490 3450 369 829 . 711 354 161 2176 2618 . Explosions 5748 | . . . . 138 221 10 . . 1081 568 662 1113 . 710 . . . . 555 690 . Melee 168 | . . . . . . . . . . . . . . . . . . . . . 168 Ramming 218 | 2 . 1 . 7 . 17 26 27 8 8 . 53 . . . . 37 . 18 . 14 Kinetic 24341 | . 314 813 . 48 10 . . . 19131 . 3000 1025 . . . . . . . . . Thermal 15277 | . . . . . 58 1579 1259 385 1345 1717 701 3279 369 829 . 711 354 . 1589 1102 . Explosive 5083 | . . . . 138 221 . . . 1081 568 662 556 . 710 . . . . 555 592 . Electromagnetic 2372 | . . . . . . 10 . . . . . . . . . . . 161 587 1614 . Impact 168 | . . . . . . . . . . . . . . . . . . . . . 168 Slashing . | . . . . . . . . . . . . . . . . . . . . . . Piercing . | . . . . . . . . . . . . . . . . . . . . . . Highest Corruption 10 | . . . . . . 1 2 2 4 5 5 10 10 10 10 . . . 6 6 . Average Corruption 5 | . . . . . . 1 1 1 3 3 5 8 10 10 10 . . . 3 6 . Corruption Purged 2 | . . . . . . . . 2 . . . . . . . . . . . . . Corruption Blocked 6 | . . . . . . . . . . . . . . . . . . . . . 6 Effects 382 | . . . . . . 1 13 21 89 8 29 81 36 38 4 . . . 24 38 . Message Errors 102 | . . . . . . . 4 5 23 2 8 21 10 8 1 . . . 4 16 . Matter Fused 105 | . . . . . . 1 3 6 24 2 8 23 13 7 2 . . . 7 9 . Heat Flow Errors 50 | . . . . . . . 2 2 11 . 3 13 6 7 . . . . 3 3 . Energy Discharges 24 | . . . . . . . 2 1 6 . 1 2 1 3 1 . . . 3 4 . Parts Rejected 1 | . . . . . . . . . . . . 1 . . . . . . . . . Parts Fused 6 | . . . . . . . . 1 . . 1 1 . 2 . . . . 1 . . Data Loss (minor) 41 | . . . . . . . 2 2 11 1 2 8 2 7 . . . . 4 2 . Data Loss (major) 15 | . . . . . . . . 1 3 . . 4 1 3 . . . . 2 1 . Misfires 19 | . . . . . . . . 1 6 . 3 5 1 1 . . . . . 2 . Alerts 12 | . . . . . . . . 2 3 1 2 2 1 . . . . . . 1 . Weapon Failures 7 | . . . . . . . . . 2 2 1 1 1 . . . . . . . . Overload Shots . | . . . . . . . . . . . . . . . . . . . . . . Overflow Damage 3428 | . . . . . . . . . 2727 20 32 329 31 41 . . . . 76 64 108 Projectiles 3197 | . . . . . . . . . 2699 16 16 272 31 35 . . . . 64 64 . Explosions 123 | . . . . . . . . . 28 4 16 57 . 6 . . . . 12 . . Melee 108 | . . . . . . . . . . . . . . . . . . . . . 108 Knockbacks 54 | . . . . . . . . . 50 . . 2 . . . . . . . . 2 Impact 3 | . . . . . . . . . . . . 1 . . . . . . . . 2 Kinetic 50 | . . . . . . . . . 49 . . 1 . . . . . . . . . Secondary 1 | . . . . . . . . . 1 . . . . . . . . . . . . Self-Inflicted Damage 823 | . . . . . 28 65 . . . 88 114 . . 26 . . . . 496 . 6 Shots 31 | . . . . . 1 3 . . . 3 5 . . 2 . . . . 17 . . Rammed 29 | 1 . 1 . 2 . 4 1 3 2 1 . 8 . . . . 1 . 2 . 3 Targets Rammed 29 | 1 . 1 . 2 . 4 1 3 2 1 . 8 . . . . 1 . 2 . 3 Kicked . | . . . . . . . . . . . . . . . . . . . . . . Crushed . | . . . . . . . . . . . . . . . . . . . . . . Highest Temperature 573 | . 24 59 . 14 60 280 334 237 354 223 206 223 143 573 . 313 90 . 396 276 6 Average Temperature 78 | . 7 16 . 8 35 86 87 104 83 56 73 78 53 164 . 152 45 . 78 66 4 Received Heat Transfer 2889 | . 144 270 . 24 45 52 75 20 1097 80 . 273 6 98 . 42 18 . 123 378 144 Effects 6 | . . . . . . . . . . . . 2 . 4 . . . . . . . Shutdowns 2 | . . . . . . . . . . . . . . 2 . . . . . . . Interference 3 | . . . . . . . . . . . . 2 . 1 . . . . . . . Matter Decay 1 | . . . . . . . . . . . . . . 1 . . . . . . . Siege Activations 39 | . . . . . . . . . 11 . 3 6 . 3 . 1 1 1 5 8 . Total Turns 4278 | . . . . . . . . . 2737 . 785 95 . 27 . 27 8 429 72 98 . Longest Duration 724 | . . . . . . . . . 724 . 397 28 . 22 . 27 8 429 24 35 . Robots Corrupted 13 | . . . . . . . . . . . . . . . . . . 1 4 6 2 Combat Hostiles 11 | . . . . . . . . . . . . . . . . . . 1 4 6 . Parts Fried 21 | . . . . . . . . . . 2 . . . . . . . 1 7 9 2 Impact Corruptions 4 | . . . . . . . . . . . . . . . . . . . . . 4 Robots Melted 7 | . . . . . . 1 . . . 2 . 2 . . . . 1 . 1 . . Combat Hostiles 7 | . . . . . . 1 . . . 2 . 2 . . . . 1 . 1 . . Parts Melted 60 | . . . . . . 10 6 2 9 8 1 10 2 3 . . 3 . 6 . . Heat Transferred 20978 | . . . . . 125 3337 2715 800 1540 2109 962 3993 450 1100 . 950 550 . 1540 807 . Parts Sabotaged . | . . . . . . . . . . . . . . . . . . . . . . Parts Stolen 2 | . . . . . . . . . 2 . . . . . . . . . . . . Parts Stripped . | . . . . . . . . . . . . . . . . . . . . . . Power Chain Reactions 1 | . . . . . . . . . . . . . . . . . . . . 1 . Alert | -11 -10 -10 -10 -9 -8 -7 -7 -7 -7 -5 -5 -5 -5 -5 -5 -4 -4 -4 -4 -4 -3 ------- Run | Yrd Mat Min Exi Min Mat Fac Sto Rec Scr Fac Was Fac Upp Upp War Pro Fac Was Fac Ext Res Peak Influence 737 | . 235 220 . 87 156 220 229 94 . 280 162 737 . . . . 113 8 263 582 693 Initial 231 | . . 91 . . 33 70 100 . . . 98 . . . . . . 8 . 112 231 Average 126 | . 86 99 . 12 67 86 91 13 . 92 47 343 . . . . 27 2 126 273 439 Maximum Alert Level 3 | . 1 1 . . . 1 1 . . 1 . 3 . . . . . . 1 2 3 Low Security (%) 77 | 100 81 96 . 100 100 97 93 100 . 78 100 14 . . . . 100 100 81 32 . Level 1 16 | . 18 3 . . . 2 6 . . 21 . 57 . . . . . . 18 55 39 Level 2 6 | . . . . . . . . . . . . 22 . . . . . . . 12 60 Level 3 . | . . . . . . . . . . . . 5 . . . . . . . . . Level 4 . | . . . . . . . . . . . . . . . . . . . . . . Level 5 . | . . . . . . . . . . . . . . . . . . . . . . High Security . | . . . . . . . . . . . . . . . . . . . . . . Max Security . | . . . . . . . . . . . . . . . . . . . . . . Squads Dispatched 43 | . 1 . . 1 2 4 5 . . 4 . 8 . . . . 1 . 7 4 6 Investigation 14 | . 1 . . 1 1 1 2 . . 1 . 3 . . . . 1 . . 1 2 Extermination 16 | . . . . . . 3 1 . . 2 . 2 . . . . . . 6 . 2 Reinforcement 10 | . . . . . 1 . 2 . . 1 . 1 . . . . . . 1 2 2 Assault 2 | . . . . . . . . . . . . 1 . . . . . . . 1 . Garrison 1 | . . . . . . . . . . . . 1 . . . . . . . . . Intercept . | . . . . . . . . . . . . . . . . . . . . . . Searches Triggered 2 | . . . . . . . . . . . . . . . . . . . . . 2 Construction Impeded 2 | . . . . . . . . . . . . . . . . . . . . 2 . Haulers Reinforced 2 | . . . . . . . 1 . . 1 . . . . . . . . . . . Active Scanning Responses . | . . . . . . . . . . . . . . . . . . . . . . Cargo Convoy Interrupts . | . . . . . . . . . . . . . . . . . . . . . . Stealth | -11 -10 -10 -10 -9 -8 -7 -7 -7 -7 -5 -5 -5 -5 -5 -5 -4 -4 -4 -4 -4 -3 --------- Run | Yrd Mat Min Exi Min Mat Fac Sto Rec Scr Fac Was Fac Upp Upp War Pro Fac Was Fac Ext Res Distress Signals 13 | . 3 . . . 1 1 . . . . . 1 . . . . . . 2 2 3 Communications Jammed 103 | . . . . . 14 . 9 . . 1 . 7 . . . . . . 14 58 . Distress Signals 97 | . . . . . 14 . 6 . . 1 . 4 . . . . . . 14 58 . Times Spotted 374 | . 12 16 . 2 9 20 26 2 94 14 5 34 1 13 . 1 4 . 23 37 61 Peak Tracking Total 21 | . 6 3 . 3 5 5 3 1 10 5 1 5 1 5 . 1 1 . 5 10 21 Tactical Retreats 30 | . . . . 1 2 2 1 . 7 1 . . . . . . . . . . 16 ID Masks Used 1 | . . . . . . . . . 1 . . . . . . . . . . . . Traps | -11 -10 -10 -10 -9 -8 -7 -7 -7 -7 -5 -5 -5 -5 -5 -5 -4 -4 -4 -4 -4 -3 ------- Run | Yrd Mat Min Exi Min Mat Fac Sto Rec Scr Fac Was Fac Upp Upp War Pro Fac Was Fac Ext Res Traps Triggered 12 | . . . . . . . 2 . . 2 . 1 . 2 . . 3 . . 1 1 Indirectly . | . . . . . . . . . . . . . . . . . . . . . . Trap Hack Attempts . | . . . . . . . . . . . . . . . . . . . . . . Triggered . | . . . . . . . . . . . . . . . . . . . . . . Disarmed . | . . . . . . . . . . . . . . . . . . . . . . Reprogrammed . | . . . . . . . . . . . . . . . . . . . . . . Reused . | . . . . . . . . . . . . . . . . . . . . . . Traps Extracted . | . . . . . . . . . . . . . . . . . . . . . . Installed . | . . . . . . . . . . . . . . . . . . . . . . Triggered . | . . . . . . . . . . . . . . . . . . . . . . Machines | -11 -10 -10 -10 -9 -8 -7 -7 -7 -7 -5 -5 -5 -5 -5 -5 -4 -4 -4 -4 -4 -3 ---------- Run | Yrd Mat Min Exi Min Mat Fac Sto Rec Scr Fac Was Fac Upp Upp War Pro Fac Was Fac Ext Res Machines Disabled 51 | . . . . . . 4 1 . 24 3 . 6 . 1 . . 1 . 5 5 1 Max in Single Turn 3 | . . . . . . 1 1 . 1 1 . 3 . 1 . . 1 . 3 2 1 Garrison Access 3 | . . . . . . . 1 . . 1 . 1 . . . . . . . . . Machines Repaired . | . . . . . . . . . . . . . . . . . . . . . . Machines Dismantled 2 | . . . . . . . . . 2 . . . . . . . . . . . . Machines Sabotaged . | . . . . . . . . . . . . . . . . . . . . . . Overloaded Fab Kills . | . . . . . . . . . . . . . . . . . . . . . . Hacking | -11 -10 -10 -10 -9 -8 -7 -7 -7 -7 -5 -5 -5 -5 -5 -5 -4 -4 -4 -4 -4 -3 --------- Run | Yrd Mat Min Exi Min Mat Fac Sto Rec Scr Fac Was Fac Upp Upp War Pro Fac Was Fac Ext Res Machines Accessed 72 | . 2 . 2 1 4 6 8 12 7 2 . 8 . 1 . . 3 . 5 4 7 Terminals 36 | . 1 . . . 3 4 5 5 . . . 5 . . . . 2 . 2 3 6 Fabricators 4 | . . . . . . 2 . . . . . 1 . . . . . . 1 . . Repair Stations 5 | . . . . . . . 2 . . 1 . . . . . . 1 . 1 . . Recycling Units 9 | . 1 . . . 1 . . 6 . . . . . . . . . . . 1 . Scanalyzers 1 | . . . . . . . . . . . . 1 . . . . . . . . . Garrison Access 5 | . . . . . . . 1 . . 1 . 1 . . . . . . 1 . 1 Total Hacks 172 | . 3 . 2 1 8 19 15 30 37 7 . 15 . 1 . . 4 . 12 9 9 Successful 84 | . 1 . 2 1 3 5 8 11 37 2 . 6 . 1 . . 1 . 3 3 . Failed 88 | . 2 . . . 5 14 7 19 . 5 . 9 . . . . 3 . 9 6 9 Catastrophic 26 | . . . . . 2 1 2 5 . 1 . 5 . . . . 1 . 2 1 6 Database Lockouts . | . . . . . . . . . . . . . . . . . . . . . . Manual 80 | . 1 . 1 . 8 11 11 25 . 4 . 6 . . . . 4 . 6 . 3 Terminals 81 | . 2 . . . 7 14 11 14 . . . 8 . . . . 3 . 6 8 8 Fabricators 10 | . . . . . . 5 . . . . . 3 . . . . . . 2 . . Repair Stations 10 | . . . . . . . 3 . . 4 . . . . . . 1 . 2 . . Recycling Units 14 | . 1 . . . 1 . . 11 . . . . . . . . . . . 1 . Scanalyzers 2 | . . . . . . . . . . . . 2 . . . . . . . . . Garrison Access 9 | . . . . . . . 1 . . 3 . 2 . . . . . . 2 . 1 Terminal Hacks 57 | . . . 2 1 1 2 4 5 37 . . 1 . 1 . . . . 1 2 . Record 33 | . . . 1 . . . . 5 27 . . . . . . . . . . . . Part Schematic 1 | . . . . . . . 1 . . . . . . . . . . . . . . Robot Analysis 12 | . . . . . 1 2 . . 9 . . . . . . . . . . . . Open Door 5 | . . . . 1 . . 1 . . . . . . 1 . . . . . 2 . Branch Access Points 2 | . . . . . . . . . . . . 1 . . . . . . 1 . . Hauler Manifests 1 | . . . . . . . 1 . . . . . . . . . . . . . . Zone Layout 1 | . . . . . . . 1 . . . . . . . . . . . . . . Derelict Proto ID Bank 2 | . . . 1 . . . . . 1 . . . . . . . . . . . . Fabricator Hacks 4 | . . . . . . 1 . . . . . 1 . . . . . . 2 . . Network Status 1 | . . . . . . 1 . . . . . . . . . . . . . . . Load Schematic 2 | . . . . . . . . . . . . 1 . . . . . . 1 . . Build 1 | . . . . . . . . . . . . . . . . . . . 1 . . Repair Station Hacks . | . . . . . . . . . . . . . . . . . . . . . . Recycling Unit Hacks 1 | . . . . . . . . . . . . . . . . . . . . 1 . Retrieve Components 1 | . . . . . . . . . . . . . . . . . . . . 1 . Scanalyzer 2 | . . . . . . . . . . . . 2 . . . . . . . . . Insert Component 1 | . . . . . . . . . . . . 1 . . . . . . . . . Analyze 1 | . . . . . . . . . . . . 1 . . . . . . . . . Garrison Access Hacks 3 | . . . . . . . 1 . . 2 . . . . . . . . . . . Unlock Access 1 | . . . . . . . . . . 1 . . . . . . . . . . . Seal Access 2 | . . . . . . . 1 . . 1 . . . . . . . . . . . Unauthorized Hacks 17 | . 1 . . . 2 2 3 6 . . . 2 . . . . 1 . . . . Terminals 6 | . . . . . 1 2 1 1 . . . 1 . . . . . . . . . Assimilate 1 | . . . . . . . . . . . . 1 . . . . . . . . . Botnet 5 | . . . . . 1 2 1 1 . . . . . . . . . . . . . Fabricators 1 | . . . . . . . . . . . . 1 . . . . . . . . . Recompile 1 | . . . . . . . . . . . . 1 . . . . . . . . . Repair Stations 3 | . . . . . . . 2 . . . . . . . . . 1 . . . . Patch 3 | . . . . . . . 2 . . . . . . . . . 1 . . . . Recycling Units 7 | . 1 . . . 1 . . 5 . . . . . . . . . . . . . Tunnel 7 | . 1 . . . 1 . . 5 . . . . . . . . . . . . . Scanalyzers . | . . . . . . . . . . . . . . . . . . . . . . Garrison Access . | . . . . . . . . . . . . . . . . . . . . . . Data Cores Recovered 1 | . . . . . . . . . . . . 1 . . . . . . . . . Used . | . . . . . . . . . . . . . . . . . . . . . . Hacking Detections 46 | . 1 . . . 3 6 5 7 . 1 . 7 . . . . 2 . 4 3 7 Full Trace Events 10 | . . . . . . 1 . 3 . 1 . 2 . . . . . . . 1 2 Feedback Events . | . . . . . . . . . . . . . . . . . . . . . . Feedback Blocked . | . . . . . . . . . . . . . . . . . . . . . . Robot Schematics Acquired . | . . . . . . . . . . . . . . . . . . . . . . Robots Built . | . . . . . . . . . . . . . . . . . . . . . . Authchips . | . . . . . . . . . . . . . . . . . . . . . . Time . | . . . . . . . . . . . . . . . . . . . . . . Total Robot Build Rating . | . . . . . . . . . . . . . . . . . . . . . . Part Schematics Acquired 16 | . . . . . . . 1 . 5 2 4 4 . . . . . . . . . Parts Built 1 | . . . . . . . . . . . . . . . . . . . 1 . . Authchips 1 | . . . . . . . . . . . . . . . . . . . 1 . . Time 17 | . . . . . . . . . . . . . . . . . . . 17 . . Total Part Build Rating 1 | . . . . . . . . . . . . . . . . . . . 1 . . Parts Repaired . | . . . . . . . . . . . . . . . . . . . . . . Time . | . . . . . . . . . . . . . . . . . . . . . . Parts Recycled . | . . . . . . . . . . . . . . . . . . . . . . Recycled Matter . | . . . . . . . . . . . . . . . . . . . . . . Retrieved Matter . | . . . . . . . . . . . . . . . . . . . . . . Retrieved Components 9 | . . . . . . . . . . . . . . . . . . . . 9 . Parts Scanalyzed 1 | . . . . . . . . . . . . 1 . . . . . . . . . Part Schematics Acquired 1 | . . . . . . . . . . . . 1 . . . . . . . . . Parts Damaged . | . . . . . . . . . . . . . . . . . . . . . . Bothacking | -11 -10 -10 -10 -9 -8 -7 -7 -7 -7 -5 -5 -5 -5 -5 -5 -4 -4 -4 -4 -4 -3 ------------ Run | Yrd Mat Min Exi Min Mat Fac Sto Rec Scr Fac Was Fac Upp Upp War Pro Fac Was Fac Ext Res Used RIF Installer . | . . . . . . . . . . . . . . . . . . . . . . Robots Hacked . | . . . . . . . . . . . . . . . . . . . . . . Non-combat . | . . . . . . . . . . . . . . . . . . . . . . Combat . | . . . . . . . . . . . . . . . . . . . . . . Robot Hacks Applied . | . . . . . . . . . . . . . . . . . . . . . . Relay Couplers Released 2 | . . . . . . . . . . . . 2 . . . . . . . . . Machine Destruction 2 | . . . . . . . . . . . . 2 . . . . . . . . . Fabnet Peak Effective % . | . . . . . . . . . . . . . . . . . . . . . . Robots Rewired 14 | . . . . . . . . . . . . . . . . . . . . 14 . Allies Hacked 1 | . . . . . . . . . . . . 1 . . . . . . . . . Hacks Repelled . | . . . . . . . . . . . . . . . . . . . . . . Allies | -11 -10 -10 -10 -9 -8 -7 -7 -7 -7 -5 -5 -5 -5 -5 -5 -4 -4 -4 -4 -4 -3 -------- Run | Yrd Mat Min Exi Min Mat Fac Sto Rec Scr Fac Was Fac Upp Upp War Pro Fac Was Fac Ext Res Total Allies 36 | . . . . . . . . . . . 20 1 . . . . . . . 15 . Largest Group 19 | . . . . . . . . . . . 19 18 . . . . . . . 13 . Highest-Rated Group 684 | . . . . . . . . . . . 684 634 . . . . . . . 552 . Highest-Rated Ally 51 | . . . . . . . . . . . 50 50 . . . . . . . 51 . Total Orders 39 | . . . . . . . 1 . . . . 15 . . . 2 6 . 15 . . STAY 2 | . . . . . . . . . . . . 2 . . . . . . . . . FOLLOW 1 | . . . . . . . . . . . . 1 . . . . . . . . . EXPLORE 21 | . . . . . . . 1 . . . . 7 . . . 1 4 . 8 . . RETURN 15 | . . . . . . . . . . . . 5 . . . 1 2 . 7 . . Ally Attacks 179 | . . . . . . . . . . . 3 87 . . . . . . . 89 . Total Damage 4651 | . . . . . . . . . . . 64 1708 . . . . . . . 2879 . Kills 35 | . . . . . . . . . . . . 10 . . . . . . . 25 . Allies Corrupted 3 | . . . . . . . . . . . . 3 . . . . . . . . . Allies Melted . | . . . . . . . . . . . . . . . . . . . . . . Intel | -11 -10 -10 -10 -9 -8 -7 -7 -7 -7 -5 -5 -5 -5 -5 -5 -4 -4 -4 -4 -4 -3 ------- Run | Yrd Mat Min Exi Min Mat Fac Sto Rec Scr Fac Was Fac Upp Upp War Pro Fac Was Fac Ext Res Robot Analysis Total 12 | . . . . . 1 2 . . 9 . . . . . . . . . . . . Derelict Logs Recovered 7 | . . 1 . 2 . . . . . . . . 2 1 . 1 . . . . . Drone Launches 35 | . . . . . . . 18 . . . . 6 . . . 2 3 . 6 . . Drone Recoveries 18 | . . . . . . . 4 . . . . 5 . . . 2 2 . 5 . . Exploration | -11 -10 -10 -10 -9 -8 -7 -7 -7 -7 -5 -5 -5 -5 -5 -5 -4 -4 -4 -4 -4 -3 ------------- Run | Yrd Mat Min Exi Min Mat Fac Sto Rec Scr Fac Was Fac Upp Upp War Pro Fac Was Fac Ext Res Turns Passed 35125 | 131 294 1402 1133 1306 531 1902 1327 1985 12018 731 1329 2130 884 1125 168 928 501 1226 1885 1356 833 Spaces Moved 14124 | 74 105 755 612 529 146 844 659 985 3093 271 258 981 428 430 71 480 252 380 791 431 1549 Core 1173 | 3 . . . . . . . . 21 . . . . . . . . . . 12 1137 Treads 11848 | 71 105 755 612 518 . 312 659 985 3071 271 258 980 428 430 71 480 252 380 791 419 . Legs 17 | . . . . 11 6 . . . . . . . . . . . . . . . . Wheels 673 | . . . . . 140 532 . . 1 . . . . . . . . . . . . Hover . | . . . . . . . . . . . . . . . . . . . . . . Flight 412 | . . . . . . . . . . . . . . . . . . . . . 412 Fastest Speed 37 | 50 160 160 160 190 130 130 150 150 110 176 160 160 160 160 240 160 160 160 155 50 37 Average Speed 182 | 155 160 160 184 239 132 173 153 194 245 187 162 160 198 239 240 174 160 189 187 229 47 Slowest Speed 2450 | 160 160 160 240 260 190 240 160 230 2450 242 240 160 240 240 240 240 160 320 235 235 80 Overloaded Moves . | . . . . . . . . . . . . . . . . . . . . . . Propulsion Burnouts . | . . . . . . . . . . . . . . . . . . . . . . Robots Hopped 3 | . . . . . . . . . . . . . . . . . . . . . 3 Cave-ins Triggered . | . . . . . . . . . . . . . . . . . . . . . . Teleports 1 | . . . . . . . . . . . . 1 . . . . . . . . . Exploration Rate (%) 55 | 7 21 98 90 97 16 19 88 99 96 7 90 33 66 63 15 82 9 95 29 55 46 Regions Visited 21 Branch Regions 11 Pre-discovered Areas 9 | . 1 . 1 1 1 . . 5 . . . . . . . . . . . . . Known Exits Taken 3 | . . . . . . 1 . . . . . 1 . . . . . . 1 . . Unknown Exits Taken 14 | 1 1 1 1 1 1 . 1 1 1 . . . 1 1 1 1 . . . 1 . Scrap Searched 18 | . . 1 . 1 . . . . 9 . . . 2 1 . 4 . . . . . Spaces Dug 201 | . . . . . 14 2 1 2 66 9 . 18 . . . 3 7 . 35 . 44 Terrain Destroyed 836 | . . . . 38 22 2 1 5 237 72 104 89 2 90 . 4 12 . 62 52 44 Melee 13 | . . . . . . 2 1 . . . . . . . . . . . . . 10 Projectile 372 | . . . . . 6 . . 5 171 16 27 61 2 14 . 4 12 . 46 7 1 AOE 349 | . . . . 38 16 . . . 5 48 77 28 . 76 . . . . 16 45 . Terrain Rammed . | . . . . . . . . . . . . . . . . . . . . . . Walls Destroyed . | . . . . . . . . . . . . . . . . . . . . . . Machines Disabled . | . . . . . . . . . . . . . . . . . . . . . . Actions | -11 -10 -10 -10 -9 -8 -7 -7 -7 -7 -5 -5 -5 -5 -5 -5 -4 -4 -4 -4 -4 -3 --------- Run | Yrd Mat Min Exi Min Mat Fac Sto Rec Scr Fac Was Fac Upp Upp War Pro Fac Was Fac Ext Res Total 22462 | 86 191 855 620 555 470 1202 908 1032 7206 414 1105 1419 458 495 70 560 337 886 1178 795 1620 Wait 6595 | . 62 28 . 1 306 258 155 13 3663 84 742 269 14 25 . 61 61 477 226 137 13 Move 14099 | 73 104 754 611 528 145 843 658 984 3092 271 257 980 427 429 70 479 252 379 790 430 1543 Hop 3 | . . . . . . . . . . . . . . . . . . . . . 3 Pick Up 177 | 6 2 6 4 6 1 19 5 7 32 2 21 16 6 3 . 1 6 3 10 13 8 Fast Attach 145 | 6 1 3 . . . 8 18 2 30 5 8 14 . 6 . 2 2 7 13 . 20 Attach 90 | . . 2 . 2 4 1 1 1 36 5 5 10 3 1 . 4 1 2 3 5 4 Detach 59 | . . 1 . . . 2 3 1 25 3 5 6 . 1 . 3 . 1 3 2 3 Swap 133 | . . . 1 4 5 13 8 4 48 7 4 8 . 6 . 1 . 2 20 2 . Drop 217 | . . 6 4 2 . 24 24 5 41 1 13 28 4 8 . 1 2 10 25 9 10 Fire 752 | . 22 54 . 10 9 28 25 12 222 35 50 80 4 16 . 8 12 5 86 73 1 Melee 16 | . . . . . . 2 2 . . . . . . . . . . . . . 12 Ram 2 | . . . . . . . . . . . . . . . . . . . . . 2 Kick . | . . . . . . . . . . . . . . . . . . . . . . Crush 27 | 1 . 1 . 2 . 4 1 3 2 1 . 8 . . . . 1 . 2 . 1 Escape Stasis . | . . . . . . . . . . . . . . . . . . . . . . Rewire 125 | . . . . . . . 1 . . . . . . . . . . . . 124 . Trap . | . . . . . . . . . . . . . . . . . . . . . . Miscellaneous 22 | . . . . . . . 7 . 15 . . . . . . . . . . . . Route ------- -11/Scrapyard -10/Materials -10/Mines (discovered 3 exits: [*Mat x2] / *Exi) -10/Exiles -9/Mines (discovered 2 exits: *Mat x2) -8/Materials -7/Factory (discovered 3 exits: [*Fac x2] / *Sto) -7/Storage (discovered 2 exits: [*Fac] / *Rec) -7/Recycling (discovered 2 exits: *Fac / *Scr) -7/Scraptown (discovered 2 exits: *Fac x2) -5/Factory -5/Waste -5/Factory (discovered 3 exits: *Fac / *Upp x2) -5/Upper Caves -5/Upper Caves -5/Warlord -4/Proximity Caves -4/Factory (discovered 2 exits: Upp / Ext) -4/Waste -4/Factory (discovered 7 exits: *Res x2 / *Upp x2 / *Ext x2 / Arm) -4/Extension -3/Research (discovered 1 exit: Qua) History --------- Turn | Location | Event 2 | -11/Scrapyard | Discovered new exit (range 16) 132 | -11/Scrapyard | Entered Materials 314 | -10/Materials | Build established: Mutant 413 | -10/Materials | Discovered new exit (range 5) 426 | -10/Materials | Entered Mines 520 | -10/Mines | Deemed a non-threat by the Exiles lab entrance 522 | -10/Mines | Discovered new exit (range 5) 1045 | -10/Mines | Learned Materials garrison access intel 1133 | -10/Mines | Discovered new exit (range 7) 1306 | -10/Mines | Received a Rocket Launcher from a helpful Derelict 1468 | -10/Mines | Discovered new exit (range 11) 1585 | -10/Mines | Lost 3 parts (1p1n1w) 1828 | -10/Mines | Entered Exiles 1868 | -10/Exiles | Met 8R-AWN 1896 | -10/Exiles | Met EX-HEX 1956 | -10/Exiles | Met EX-DEC 1966 | -10/Exiles | Learned location of Zion (-6) 2008 | -10/Exiles | Met EX-BIN 2046 | -10/Exiles | Aligned with FarCom system 2048 | -10/Exiles | Given EX-Vault access code 2084 | -10/Exiles | Opened EX-Vault 2099 | -10/Exiles | Found AWS/Autocannon 2135 | -10/Exiles | Warned to stay clear of 0b10 Research branches 2270 | -10/Exiles | Visited The Gauntlet 2935 | -10/Exiles | Discovered new exit (range 12) 2961 | -10/Exiles | Left Exiles lab with AWS/Autocannon 2961 | -10/Exiles | Entered Mines 3201 | -9/Mines | Discovered new exit (range 16) 3320 | -9/Mines | Discovered new exit (range 11) 3770 | -9/Mines | Met a Derelict shopkeep closing up shop 3833 | -9/Mines | Learned Materials emergency access door positions 3836 | -9/Mines | Learned location of Storage (-7) 4267 | -9/Mines | Entered Materials 4267 | -8/Materials | Evolved 4 slots: Propulsion x1, Utility x2, Weapon x1 4269 | -8/Materials | Loaded intel: 1 garrison access location 4575 | -8/Materials | Build established: Scavenger-Skirmisher 4786 | -8/Materials | Discovered new exit (range 5) 4798 | -8/Materials | Entered Factory 4798 | -7/Factory | Evolved 2 slots: Power x1, Utility x1 4799 | -7/Factory | Identified exit to Storage 5326 | -7/Factory | Build established: Scavenger-Tank 5920 | -7/Factory | Discovered new exit (range 9) 6319 | -7/Factory | Discovered new exit (range 15) 6700 | -7/Factory | Entered Storage 6811 | -7/Storage | Met 01-MTF 6934 | -7/Storage | Used back door to open Recycling access 6934 | -7/Storage | Discovered new exit (range 5) 7387 | -7/Storage | Found Prototype Launcher 7387 | -7/Storage | Identified Rocket Array 7436 | -7/Storage | Build established: Tank 7621 | -7/Storage | Discovered new exit (range 16) 7719 | -7/Storage | Lost 12 allies 7772 | -7/Storage | Destroyed 01-MTF 8027 | -7/Storage | Entered Recycling 8803 | -7/Recycling | Discovered new exit (range 16) 9726 | -7/Recycling | Build established: Skirmisher 9941 | -7/Recycling | Scanned before Scraplab entrance 10010 | -7/Recycling | Discovered new exit (range 2) 10012 | -7/Recycling | Entered Scraptown 10236 | -7/Scraptown | Build established: Tank 10722 | -7/Scraptown | Discovered new exit (range 7) 10749 | -7/Scraptown | Build established: Scavenger-Tank 11039 | -7/Scraptown | Heard Great Nut preacher, LISTEN AND RECITE! 11060 | -7/Scraptown | Visited Cave Peace 11152 | -7/Scraptown | Visited CR-KLE's Repair Center 11178 | -7/Scraptown | CR-KLE repaired 12 parts 11533 | -7/Scraptown | Build established: Tank 11712 | -7/Scraptown | Visited Fellowship of the Rings 11792 | -7/Scraptown | Visited Cyclists 11921 | -7/Scraptown | Visited Bundlers 12178 | -7/Scraptown | Visited Awakened 12272 | -7/Scraptown | Visited TADAMA 12774 | -7/Scraptown | Build established: Mutant 13527 | -7/Scraptown | Attacked by Scraptown defenders 13561 | -7/Scraptown | Destroyed Triborg 13568 | -7/Scraptown | Found Tri-treads 13586 | -7/Scraptown | Found Tri-treads 13587 | -7/Scraptown | Lost 8 parts (2p2n4u) 13604 | -7/Scraptown | Found Prototype Ballistic Cannon 13604 | -7/Scraptown | Identified Siege Cannon 13617 | -7/Scraptown | Destroyed 7 combat bots 13728 | -7/Scraptown | Destroyed 11 combat bots 13828 | -7/Scraptown | Build established: Scavenger-Tank 13947 | -7/Scraptown | Core integrity fell below 50% 15927 | -7/Scraptown | Found Scrap Suit 16098 | -7/Scraptown | Entered Cyclist Reading Room 16954 | -7/Scraptown | Destroyed 9 combat bots 17016 | -7/Scraptown | Destroyed 14 combat bots 17704 | -7/Scraptown | Core integrity fell below 20% 17986 | -7/Scraptown | AWS/Autocannon suddenly broke down 18198 | -7/Scraptown | Found ID Mask 18271 | -7/Scraptown | Found Prototype Device 18271 | -7/Scraptown | Identified Exp. Recalibrator 18581 | -7/Scraptown | Visited Junk Repository 18638 | -7/Scraptown | Visited Analyses Database 18684 | -7/Scraptown | Visited Chapter 10 18743 | -7/Scraptown | Visited Research Penetration Think Tank 18783 | -7/Scraptown | Visited Scrap Suit Storage 18879 | -7/Scraptown | Visited Modified Component R&D 19094 | -7/Scraptown | Discovered new exit (range 5) 19300 | -7/Scraptown | Visited Scrapoid Research Area 19355 | -7/Scraptown | Visited LU-1G1's Boring Crew 19453 | -7/Scraptown | Found Prototype Special Weapon 19453 | -7/Scraptown | Identified LU-1G1's Laser Shovel 19549 | -7/Scraptown | Visited Science Guys 19592 | -7/Scraptown | Found Personal Teleporter v0.10 21749 | -7/Scraptown | ID Mask engaged 22030 | -7/Scraptown | Entered Factory 22030 | -5/Factory | Evolved 4 slots: Propulsion x1, Utility x3 22058 | -5/Factory | Identified exit to Garrison 22761 | -5/Factory | Sucked down chute 22761 | -5/Factory | Entered Waste 22762 | -5/Waste | Met a frightened Derelict 22787 | -5/Waste | Spotted C-40 Crusher 22807 | -5/Waste | Destroyed C-40 Crusher 23034 | -5/Waste | Spotted C-40 Crusher 23046 | -5/Waste | Destroyed C-40 Crusher 23063 | -5/Waste | Spotted C-40 Crusher 23063 | -5/Waste | Destroyed C-40 Crusher 23064 | -5/Waste | Spotted C-40 Crusher 23071 | -5/Waste | Destroyed C-40 Crusher 23121 | -5/Waste | Spotted C-40 Crusher 23145 | -5/Waste | Crushed by Compactor (1 part destroyed, 1 dropped) 23148 | -5/Waste | Crushed by Compactor (0 parts destroyed, 1 dropped) 23151 | -5/Waste | Crushed by Compactor (1 part destroyed, 1 dropped) 23154 | -5/Waste | Destroyed C-40 Crusher 23182 | -5/Waste | Lost 3 parts (1p2u) 23329 | -5/Waste | Spotted C-40 Crusher 23352 | -5/Waste | Destroyed C-40 Crusher 23434 | -5/Waste | Build established: Scavenger-Skirmisher 23814 | -5/Waste | Warlord forces began an assault 23908 | -5/Waste | Discovered new exit (range 15) 24090 | -5/Waste | Entered Factory 24090 | -5/Factory | Accompanied by 18 allies 24303 | -5/Factory | Lost 3 allies 24470 | -5/Factory | Garrison activated, responded to threat 24489 | -5/Factory | Lost 11 allies 24554 | -5/Factory | System corruption reached 10% 25156 | -5/Factory | Identified exit to Upper Caves 25462 | -5/Factory | Build established: Scavenger-Tank 25654 | -5/Factory | Destroyed 7 combat bots 26092 | -5/Factory | Discovered new exit (range 34) 26220 | -5/Factory | Entered Upper Caves 26295 | -5/Upper Caves | Attracted the attention of an 0b10 checkpoint 26339 | -5/Upper Caves | Learned 4 Factory zone layouts 26912 | -5/Upper Caves | Learned Factory security intel 27085 | -5/Upper Caves | Discovered new exit (range 5) 27104 | -5/Upper Caves | Entered another Upper Caves area 27498 | -5/Upper Caves | Attacked by a delusional Derelict stockpiling parts 28005 | -5/Upper Caves | Learned Factory machine intel 28212 | -5/Upper Caves | Discovered new exit (range 7) 28229 | -5/Upper Caves | Entered Warlord 28316 | -5/Warlord | System corruption cleaned by Quarantine Array 28369 | -5/Warlord | Discovered new exit (range 12) 28397 | -5/Warlord | Entered Proximity Caves 28472 | -4/Proximity Caves | Spotted B-86 Titan 28651 | -4/Proximity Caves | Destroyed B-86 Titan 28904 | -4/Proximity Caves | Build established: Scavenger-Gunner 29002 | -4/Proximity Caves | Learned location of 1 exit from Research 29228 | -4/Proximity Caves | Discovered new exit (range 14) 29325 | -4/Proximity Caves | Entered Factory 29325 | -4/Factory | Evolved 2 slots: Utility x2 29326 | -4/Factory | Identified exit to Extension 29326 | -4/Factory | Identified exit to Upper Caves 29328 | -4/Factory | Loaded intel: 289 machine locations 29826 | -4/Factory | Sucked down chute 29826 | -4/Factory | Entered Waste 29826 | -4/Waste | The area was eerily silent 30568 | -4/Waste | Found Unknown Protection 30568 | -4/Waste | Identified Adv. Powered Armor 30862 | -4/Waste | Build established: Scavenger-Tank 30997 | -4/Waste | Discovered new exit (range 12) 31052 | -4/Waste | Entered Factory 31246 | -4/Factory | Identified exit to Armory 31488 | -4/Factory | Found Quantum Capacitor 31580 | -4/Factory | Discovered new exit (range 15) 31777 | -4/Factory | Build established: Gunner 32655 | -4/Factory | Fabricated Huge Storage Unit (x1) 32685 | -4/Factory | Discovered new exit (range 10) 32804 | -4/Factory | Build established: Mutant 32937 | -4/Factory | Entered Extension 33249 | -4/Extension | Build established: Gunner 33405 | -4/Extension | Rescued a captive Derelict 33807 | -4/Extension | Rescued a captive Derelict 33982 | -4/Extension | Build established: Commander-Gunner 34128 | -4/Extension | Spotted B-86 Titan 34131 | -4/Extension | Lost 4 allies 34137 | -4/Extension | Allies destroyed B-86 Titan 34153 | -4/Extension | Spotted B-86 Titan 34169 | -4/Extension | Allies destroyed B-86 Titan 34187 | -4/Extension | First assault squad dispatched 34293 | -4/Extension | Discovered new exit (range 3) 34293 | -4/Extension | Entered Research 34293 | -3/Research | Evolved 2 slots: Utility x2 34294 | -3/Research | Identified exit to Quarantine 34317 | -3/Research | Lost 11 parts (1p3n4u3w) 34321 | -3/Research | Lost 7 allies 34543 | -3/Research | Build established: Mutant 34630 | -3/Research | Found Prototype Processor 34630 | -3/Research | Identified Exp. Terrain Scan Processor 34633 | -3/Research | Lost 3 parts (2n1w) 34730 | -3/Research | Spotted B-86 Titan 34793 | -3/Research | Search patrols dispatched 34957 | -3/Research | Found Prototype Launcher 34957 | -3/Research | Identified Tactical Quantum Warhead 34994 | -3/Research | Found Fusion Bomb Launcher 35068 | -3/Research | Search patrols dispatched 35084 | -3/Research | Build established: Scout 35093 | -3/Research | Core integrity fell below 50% 35094 | -3/Research | Spotted B-86 Titan 35096 | -3/Research | Lost 3 parts (2n1u) 35107 | -3/Research | Core integrity fell below 20% 35126 | -3/Research | Destroyed by S-43 Plague with Heavy Machine Gun Last Messages --------------- 35074_ G-73 Enforcer unfolds itself. 35074_ G-67 Veteran unfolds itself. 35081_ P-80 Master resets M-36 Artificer, system corruption cleaned. 35087_ Slug penetrates W-44 Eye. 35087_ Penetrated by Slug. 35089_ Slug penetrates Wall. 35093_ Penetrated by Slug. 35095_ Slug penetrates Fabricator. 35097_ Penetrated by Slug. 35100_ Slug penetrates T-07 Excavator. 35100_ Slug penetrates W-44 Eye. 35100_ T-07 Excavator destroyed. 35101_ W-44 Eye sends out distress signal. 35101_ Penetrated by Slug. 35101_ Imp. Corruption Screen destroyed. 35104_ Knocked back. 35106_ Slammed into S-43 Plague. 35125_ Connecting with Terminal... 35125_ ALERT: Suspicious activity at Terminal R005. Dispatching Investigation squad. Map ----- +----------------------------------------------------+ | ??????????????????????????????????????# | | ??????????????????????????????????????# | | ??????????????????????????????????????# % | | ?????????????????????????##??? ???????# | | ?????????????????????????? ??????# | | ???????????????????????????# ??????# | | ???????????????????????????# ??????######### | | ???????????????????????????# #######???????# | | ???????????????????????????# ######## | | ??????????????????????""" # | | ??????????????????????""" + | | ?????????????????????? # | | ???????????????????????????# """"" | | ???????????????????????????# g""""""" ####### | | ????????????????????????????# """"""" # | | ????????????????????????????# """"""" # | | ????????????????????????????# """"" + ] | | ????????????????????????????# ! # | | ????????????????????????????# # | | ????????????????????????????# pp #?##### | | ??????????????????########### #######s######??? | | ??????????????????# """ # # p #??? | | ??????????????????# ""T"" # # #??? | | ??????????????????# "" "" # # """ """ #??? | | ??????????????????# s s s + """ """ #??? | | ??????????????????# @ # # """ """ #??? | | ??????????????????# # # """ """ #??? | | ??????????????????# + # """ """ #??? | | ??????????????????# ###### """ """ #??? | | ??????????????????###########????# """ """ #??? | | ?????????????????????????????????# #??? | | ?????????????????????????????????# #??? | | ?????????????????????????????????# ?#??? | | ?????????????????????????????????#############???? | | ?????????????????????????????????????????????????? | | ?????????????????????????????????????????????????? | | | | | | | | | | | | | | | | | | | | | | | | | | | | | +----------------------------------------------------+ Best States ------------- Heat Dissipation 125 Coolant Potential 65 Energy Generation 41 Energy Capacity 1090 Matter Stores 300 Matter Capacity 300 Sight Range 22 Terrain Scan Density 210 Jamming Range 16 Base Temperature (-) 200 Corruption Containment 12 Corruption Block 20 Armor Coverage 2000 Propulsion Shielding 66 Weapon Cycling 20 Phase Shifting 15 Evasion (%) 62 Targeting Accuracy 14 Target Analysis 6 Recoil Reduction 4 Particle Charging 30 Authchip Count 1 Item Schematics ----------------- Huge Storage Unit | -7/Storage | Hacked 0b10 Decoder Chip [Skirmisher] | -7/Scraptown | Extrapolated Mak. Leg | -7/Scraptown | Extrapolated Mak. Coolant Network | -7/Scraptown | Extrapolated 0b10 Decoder Chip [Generic] | -7/Scraptown | Extrapolated 0b10 Decoder Chip [Scout] | -7/Scraptown | Extrapolated Spk. Medium Treads | -5/Factory | Extrapolated Beamcaster | -5/Factory | Extrapolated Spk. Heavy Treads | -5/Waste | Extrapolated Mak. Power Source | -5/Waste | Extrapolated Mak. Medium Armor Plating | -5/Waste | Extrapolated Mak. Ablative Armor | -5/Waste | Extrapolated Mak. Hammer | -5/Factory | Extrapolated Mak. Transmission Jammer | -5/Factory | Extrapolated Mak. Light Armor Plating | -5/Factory | Extrapolated CPS Tube | -5/Factory | Scanalyzed Robot Schematics ------------------ None Fabricated ------------ Huge Storage Unit | x1 | -4/Factory | Authchip Alien Tech Used ----------------- None Achievements -------------- None Challenges ------------ None Game ------ Seed RecoilElectronArticulator Manual? 0 Play Time 04:16:22 Cumulative 155.4 hours Start 2024.08.08 @ 22:06:58 End 2024.10.11 @ 17:45:06 Sessions 45 Manual Loads 0 Difficulty Rogue Special Mode None Game No. 87 Rogue 87 Adventurer 0 Explorer 0 Win Type - Total 5 Types 2/0/1/1/0/0/0/1/0 Lore% 70 Gallery% 73 Achievement% 64 Wizard Run 0 Options --------- Layout 0 ASCII 0 Keyboard 1 Movement Numpad Keybinds 0 Fullscreen 1 Font 18/SmallcapsGlow Map View 76x50 Zoom Use 0% Tactical HUD 1 Map Filters NONE Filters NONE Steam 1 RUN: b7f06b30-6193-4b31-8361-22914de01d82